Cogmind - Beta 16 @@@ ROGUE MODE // 2025.10.30 @ 17:08:35 Player: C0-2MO Result: Destroyed self via exploding Power Conduit Performance ------------- Evolutions (4) 2000 Regions Visited (9) 1800 Robots Destroyed (136) 680 Value Destroyed (3116) 3116 Prototype IDs (17) 340 Alien Tech Used (0) 0 Bonus (1332) 1332 TOTAL SCORE: 9268 Bonus ------- High Alert Combat Kills 424 Follower Combat Kills 108 Registered with UFD 300 Met Optimus in HQ 500 Cogmind --------- Core Integrity 0/850 Matter 265/300 Energy 100/100 System Corruption 0% Temperature Cool (12) Movement Flying (32) Location -6/Factory Parts ------- > --- POWER (1) -------- (None) > --- PROPULSION (6) --- VTOL Module Xenon Bombardment Thruster Xenon Bombardment Thruster > --- UTILITY (6) ------ Enhanced Optical Array Advanced Sensor Array Advanced Signal Interpreter Improved Salvage Targeting Computer Hacking Suite Hacking Suite > --- WEAPON (2) ------- Long-range Missile Launcher Spear > --- INVENTORY (5) ---- Stasis Canceller Light Regenerative Plating Authchip [Propulsion] Authchip [Device] Peak State ------------ > --- POWER ------------ Fission Core > --- PROPULSION ------- Improved Flight Unit Cesium-ion Thruster Cesium-ion Thruster Cesium-ion Thruster Improved VTOL Module Improved VTOL Module > --- UTILITY ---------- Medium Storage Unit Experimental Sensor Array Advanced Signal Interpreter Hacking Suite Hacking Suite Improved System Shield > --- WEAPON ----------- Improved Datajack Power Sword > --- INVENTORY -------- Improved Ion Engine Cesium-ion Thruster Cesium-ion Thruster Energy Well Advanced ECM Suite Improved Propulsion Shielding Light Regenerative Plating Rocket Launcher CPS Tube Katana [Rating: 62] Favorites ----------- Power Light Ion Engine Engine Light Ion Engine Power Core Fission Core Propulsion Flight Unit Treads Light Treads Flight Unit Flight Unit Utility Hacking Suite Device Seismic Detector Storage Small Storage Unit Processor Advanced Signal Interpreter Hackware Hacking Suite Protection Propulsion Shielding Weapon Katana Ballistic Gun High-powered Shotgun Launcher Long-range Missile Launcher Special Weapon Mining Laser Impact Weapon Heavy Hammer Slashing Weapon Katana Piercing Weapon Spear Special Melee Weapon Improved Datajack Build | -11 -10 -10 -9 -9 -8 -8 -8 -8 -6 ------- Run | Yrd Mat Min Mat Min Mat Sto Rec Scr Fac Slots Evolved 8 | . . . 2 . 2 . . . 4 Power . | . . . . . . . . . . Propulsion 4 | . . . 2 . . . . . 2 Utility 4 | . . . . . 2 . . . 2 Weapon . | . . . . . . . . . . Parts Attached 105 | 4 9 4 23 . 17 11 . 3 34 Power 12 | . . . 4 . 1 3 . . 4 Engine 9 | . . . 4 . . 3 . . 2 Core 3 | . . . . . 1 . . . 2 Reactor . | . . . . . . . . . . Propulsion 37 | 2 2 3 10 . 6 4 . . 10 Treads 2 | 2 . . . . . . . . . Leg . | . . . . . . . . . . Wheel . | . . . . . . . . . . Hover . | . . . . . . . . . . Flight 35 | . 2 3 10 . 6 4 . . 10 Utility 27 | 1 1 . 2 . 4 4 . 3 12 Device 10 | 1 . . . . 1 2 . . 6 Storage 3 | . . . 1 . . 1 . 1 . Processor 4 | . . . . . . . . . 4 Hackware 4 | . . . . . 1 . . 2 1 Protection 6 | . 1 . 1 . 2 1 . . 1 Artifact . | . . . . . . . . . . Weapon 29 | 1 6 1 7 . 6 . . . 8 Energy Gun . | . . . . . . . . . . Energy Cannon . | . . . . . . . . . . Ballistic Gun 11 | 1 4 1 5 . . . . . . Ballistic Cannon . | . . . . . . . . . . Launcher 7 | . . . 1 . 2 . . . 4 Special Weapon 1 | . 1 . . . . . . . . Impact Weapon 5 | . 1 . 1 . 2 . . . 1 Slashing Weapon 2 | . . . . . 1 . . . 1 Piercing Weapon 1 | . . . . . . . . . 1 Special Melee Weapon 2 | . . . . . 1 . . . 1 Unidentified Prototypes 9 | . . . 3 . . 3 . . 3 Corrupted Parts 1 | . . . . . . . . 1 . System Corruption 3 | . . . . . . . . 3 . Parts Lost 36 | . 1 1 7 1 3 3 . . 20 Power 7 | . . . 2 . 1 1 . . 3 Propulsion 21 | . . 1 4 1 2 1 . . 12 Utility 5 | . . . 1 . . . . . 4 Weapon 3 | . 1 . . . . 1 . . 1 Highest Loss Streak 10 | . 1 1 3 1 1 1 . . 10 To Critical Strikes . | . . . . . . . . . . Average Backups 6 | . 4 4 5 7 7 7 7 7 6 Power . | . . . . . . . . . . Propulsion 1 | . 2 2 . . . 2 3 3 . Utility 2 | . . . 1 1 2 2 2 2 3 Weapon 2 | . 1 . 2 4 3 2 2 2 1 Tool/Special . | . . . . . . . . . . Unused Backups 14 | . 1 2 . . 2 1 1 . 7 Power . | . . . . . . . . . . Propulsion 4 | . 1 1 . . 1 . 1 . . Utility 8 | . . 1 . . . 1 . . 6 Weapon . | . . . . . . . . . . Tool/Special 2 | . . . . . 1 . . . 1 Average Slot Usage (%) 83 | . 78 84 95 100 92 95 90 89 63 Engine 5 | . . . 8 11 8 8 9 9 2 Treads 1 | . 9 . . . . . . . . Flight 29 | . 18 27 42 44 34 35 36 35 17 Device 4 | . 14 14 6 . 1 . . . 4 Storage 5 | . . . 4 11 9 9 9 9 2 Processor 3 | . . . . . . . . . 11 Hackware 7 | . . . . . 7 9 9 20 14 Protection 9 | . 7 14 9 11 17 17 18 6 . Ballistic Gun 5 | . 18 14 12 11 4 . . . . Impact Weapon 4 | . 8 14 9 11 8 . . . . Slashing Weapon 3 | . . . . . . 9 9 9 5 Peak Build Rating 62 | 4 6 7 18 17 29 39 30 33 62 Average Rating 24 | 3 5 6 13 16 23 32 30 32 37 On Entrance 17 | . 4 6 7 16 17 29 30 30 31 Avg Prop Armor Cover (%) 8 | 33 27 . 10 . 3 2 . . 4 Naked Turns . | . . . . . . . . . . Heaviest Build 26 | 3 6 6 15 15 18 21 19 19 26 Greatest Support 33 | 20 8 8 18 18 24 24 21 21 33 Greatest Overweight (x) 3 | . 1 1 3 . . . . 3 3 Average Overweight (x) . | . . . . . . . . . . Largest Inventory Capacity 10 | 5 5 5 8 8 8 8 8 10 10 Average Capacity 6 | 5 5 5 6 8 8 8 8 8 6 Most Carried 10 | 2 5 5 7 8 8 8 8 9 10 Average Carried 6 | . 4 4 5 7 7 7 7 7 6 Final Capacity 10 | 5 5 5 8 8 8 8 8 10 5 Final Carried 8 | 2 5 5 7 6 8 8 8 8 4 Class Distribution -------------------- 20% | Commander-Sprinter 20% | Sprinter 17% | Mutant 13% | Scavenger-Sprinter 9% | Hacker-Scout 5% | Scavenger-Mutant 5% | Hacker-Sprinter 4% | Hacker-Mutant Dominant Class ---------------- Mutant | -10/Materials Mutant | -10/Mines Scavenger-Sprinter | -9/Materials Scavenger-Sprinter | -9/Mines Sprinter | -8/Materials Sprinter | -8/Storage Commander-Sprinter | -8/Recycling Commander-Sprinter | -8/Scraptown Hacker-Scout | -6/Factory Resources | -11 -10 -10 -9 -9 -8 -8 -8 -8 -6 ----------- Run | Yrd Mat Min Mat Min Mat Sto Rec Scr Fac Matter Collected 2381 | 270 217 75 491 30 205 255 . 46 792 Remotely . | . . . . . . . . . . Salvage Created 3891 | 109 591 226 662 . 364 365 . . 1574 Parts 210 | 4 30 15 36 . 11 21 . . 93 Haulers Intercepted 12 | . 2 . 3 . 1 5 . . 1 Recyclers Shooed 4 | 1 1 2 . . . . . . . Parts Field Recycled . | . . . . . . . . . . Retrieved Matter . | . . . . . . . . . . Parts Self-Destructed . | . . . . . . . . . . Prevented . | . . . . . . . . . . Parts Restored . | . . . . . . . . . . Kills | -11 -10 -10 -9 -9 -8 -8 -8 -8 -6 ------- Run | Yrd Mat Min Mat Min Mat Sto Rec Scr Fac Combat Hostiles Destroyed 86 | . 8 9 21 . 13 4 . . 31 Melee 7 | . . . 3 . . 2 . . 2 Guns 22 | . 8 8 6 . . . . . . AOE 49 | . . . 10 . 8 2 . . 29 Classes Destroyed 15 | 2 4 1 3 . 2 . . . 3 Worker 5 | . . . 1 . . . . . 4 Builder 7 | . . 1 . . . . . . 6 Tunneler 4 | 1 1 . . . . . . . 2 Hauler 12 | . 2 . 3 . 1 5 . . 1 Recycler 9 | 1 2 1 . . . . . . 5 Operator 2 | . . . . . 2 . . . . Watcher 11 | . 2 . 3 . 1 1 . . 4 Swarmer 47 | . 3 8 10 . 7 3 . . 16 Cutter 3 | . . . . . . . . . 3 Grunt 25 | . 5 1 7 . 4 1 . . 7 Duelist 1 | . . . 1 . . . . . . Protector 1 | . . . . . . . . . 1 Sentry 6 | . . . 3 . 1 . . . 2 Hunter 1 | . . . . . 1 . . . . Programmer 2 | . . . . . . . . . 2 Best Kill Streak 11 | 2 8 6 11 . 7 4 . . 7 Combat Bots Only 10 | . 6 5 10 . 5 3 . . 7 Max Kills in Single Turn 4 | 1 1 1 3 . 4 3 . . 3 Gunslinging . | . . . . . . . . . . Exploded 3 | . . . 3 . 3 2 . . 3 Melee 1 | . . . 1 . . 1 . . 1 Uniques/NPCs Destroyed . | . . . . . . . . . . Combat | -11 -10 -10 -9 -9 -8 -8 -8 -8 -6 -------- Run | Yrd Mat Min Mat Min Mat Sto Rec Scr Fac Hostile Shots Fired 503 | . 57 21 89 5 60 85 . . 186 Missed 200 | . 14 7 35 3 29 42 . . 70 Hits 303 | . 43 14 54 2 31 43 . . 116 Melee 5 | . . . 1 . . . . . 4 Projectile 298 | . 43 14 53 2 31 43 . . 112 AOE 2 | . . . . . . . . . 2 Critical Strikes 10 | . 1 . 2 . 1 3 . . 3 Actively Blocked 3 | . . . 1 . . 1 . . 1 Damage Taken 4331 | . 494 107 789 22 484 577 . . 1858 Core 1364 | . 95 22 181 . 83 122 . . 861 Absorbed by Shields . | . . . . . . . . . . Redirected to Shielding 128 | . . 4 27 . 22 25 . . 50 Regen/Repaired (Parts) 407 | . . . 95 . 62 187 17 . 46 Core Remaining (%) 67 | 100 . 53 . 54 . . . 62 . Volleys Fired 141 | 10 51 14 31 . 4 1 . . 30 Largest 2 | 1 2 1 2 . 1 1 . . 1 Hottest 100 | 20 100 20 50 . 33 30 . . 43 Shots Fired 190 | 10 95 14 36 . 4 1 . . 30 Gun 146 | 10 92 14 29 . 1 . . . . Cannon . | . . . . . . . . . . Launcher 41 | . . . 7 . 3 1 . . 30 Special 3 | . 3 . . . . . . . . Kinetic 146 | 10 92 14 29 . 1 . . . . Thermal 3 | . 3 . . . . . . . . Explosive 41 | . . . 7 . 3 1 . . 30 Electromagnetic . | . . . . . . . . . . Robot Hit Streak 10 | 5 7 7 10 . 3 1 . . 8 Robot Miss Streak 5 | 2 5 1 5 . 3 . . . 2 Penetration Max . | . . . . . . . . . . Secondary Targets 4 | . 4 . . . . . . . . Max Gunslinging Chain 1 | . 1 . . . . . . . . Shots Hit Robots 226 | 7 67 18 49 . 18 18 . . 49 Core Hits 169 | 2 25 8 27 . 13 9 . . 85 Critical Kills . | . . . . . . . . . . Critical Parts Destroyed 8 | . 1 1 3 . 3 . . . . Critical Strikes 13 | . 1 1 3 . 3 2 . . 3 Smash 8 | . 1 1 3 . 3 . . . . Sever 3 | . . . . . . 2 . . 1 Impale 2 | . . . . . . . . . 2 Melee Attacks 273 | . 16 14 61 . 49 47 1 . 85 Impact 136 | . 16 14 61 . 45 . . . . Slashing 121 | . . . . . 4 47 1 . 69 Piercing 16 | . . . . . . . . . 16 Sneak Attacks 34 | . 2 3 6 . 2 6 . . 15 Combat Hostiles 3 | . . . 1 . 1 . . . 1 Follow-up Attacks . | . . . . . . . . . . Damage Inflicted 11229 | 92 791 363 2286 . 1229 971 . . 5497 Guns 1091 | 92 512 148 326 . 13 . . . . Cannons . | . . . . . . . . . . Explosions 4997 | . . . 675 . 566 137 . . 3619 Melee 5141 | . 279 215 1285 . 650 834 . . 1878 Ramming . | . . . . . . . . . . Kinetic 1091 | 92 512 148 326 . 13 . . . . Thermal 164 | . . . . . . . . . 164 Explosive 4638 | . . . 675 . 566 137 . . 3260 Electromagnetic 195 | . . . . . . . . . 195 Impact 2429 | . 279 215 1285 . 650 . . . . Slashing 2233 | . . . . . . 834 . . 1399 Piercing 479 | . . . . . . . . . 479 Highest Corruption 4 | . . . 1 1 1 1 1 4 1 Average Corruption 1 | . . . 1 1 1 1 1 2 1 Corruption Purged 1 | . . . . . . . . . 1 Corruption Blocked . | . . . . . . . . . . Effects 18 | . . . 6 . 3 5 3 . 1 Message Errors 6 | . . . 4 . . . 2 . . Matter Fused 6 | . . . 1 . 2 2 1 . . Heat Flow Errors 2 | . . . . . . 1 . . 1 Energy Discharges 2 | . . . 1 . . 1 . . . Parts Rejected 1 | . . . . . . 1 . . . Data Loss (minor) 1 | . . . . . 1 . . . . Overload Shots . | . . . . . . . . . . Overflow Damage 1325 | . 137 78 543 . 203 32 . . 332 Projectiles 18 | . . . . . 18 . . . . Explosions 128 | . . . 1 . 10 . . . 117 Melee 1179 | . 137 78 542 . 175 32 . . 215 Knockbacks 3 | . 1 . . . 2 . . . . Impact 3 | . 1 . . . 2 . . . . Kinetic . | . . . . . . . . . . Secondary . | . . . . . . . . . . Self-Inflicted Damage 484 | . . . 64 . 33 . . . 387 Shots 14 | . . . 3 . 1 . . . 10 Rammed . | . . . . . . . . . . Targets Rammed . | . . . . . . . . . . Kicked . | . . . . . . . . . . Crushed . | . . . . . . . . . . Highest Temperature 430 | . 22 1 430 . 15 158 4 . 243 Average Temperature 67 | . 4 1 148 . 9 31 4 . 58 Received Heat Transfer 1167 | . 258 . 198 . 198 234 . . 279 Effects 1 | . . . 1 . . . . . . Interference 1 | . . . 1 . . . . . . Siege Activations . | . . . . . . . . . . Martial Activations . | . . . . . . . . . . Shielding Activations . | . . . . . . . . . . Robots Disrupted 1 | . . . . . . . . . 1 Combat Hostiles . | . . . . . . . . . . Robots Corrupted 16 | . 3 3 4 . 6 . . . . Combat Hostiles 8 | . . 1 2 . 5 . . . . Parts Fried 18 | . 4 4 5 . 5 . . . . Impact Corruptions 36 | . 7 5 13 . 11 . . . . Robots Melted . | . . . . . . . . . . Combat Hostiles . | . . . . . . . . . . Parts Melted . | . . . . . . . . . . Heat Transferred 100 | . . . . . . . . . 100 Parts Sabotaged . | . . . . . . . . . . Parts Stolen . | . . . . . . . . . . Parts Stripped . | . . . . . . . . . . Power Chain Reactions . | . . . . . . . . . . Alert | -11 -10 -10 -9 -9 -8 -8 -8 -8 -6 ------- Run | Yrd Mat Min Mat Min Mat Sto Rec Scr Fac Maximum Alert Level 4 | . . 1 3 1 2 2 2 . 4 Low Security (%) 35 | 100 100 98 18 22 17 17 10 . 28 Level 1 29 | . . 1 38 77 27 37 82 . 15 Level 2 25 | . . . 32 . 54 44 7 . 30 Level 3 8 | . . . 10 . . . . . 25 Level 4 . | . . . . . . . . . . Level 5 . | . . . . . . . . . . High Security . | . . . . . . . . . . Max Security . | . . . . . . . . . . Peak Influence 1167 | 10 190 208 757 290 482 694 416 . 1167 Initial 290 | . . 42 57 290 62 186 270 . . Average 341 | 2 99 105 426 229 350 395 290 . 470 Influence Increases 5991 | 10 417 296 1192 . 745 1074 241 . 2016 Destroy 0b10 Robot/C 1860 | . 160 200 500 . 260 80 20 . 640 Destroy 0b10 Robot/NC 255 | 10 35 10 35 . 20 30 . . 115 Destroy Leader 406 | . 38 40 112 . 54 22 . . 140 Allied During Kill 43 | . . 26 16 . . . . . 1 Successful Hack 293 | . 11 . 43 . 66 58 10 . 105 Select Force Hacks 410 | . 30 . 30 . 30 60 210 . 50 Disable Machine 360 | . . . 15 . 15 30 . . 300 Destroy Structure 399 | . 8 5 66 . 45 29 1 . 245 Partial Spotted 405 | . 15 . 45 . 105 150 . . 90 Lose Combat Pursuer 1560 | . 120 15 330 . 150 615 . . 330 Influence Decreases 4739 | 10 307 258 595 585 462 823 766 169 764 Entered New Map 1562 | . . 68 91 455 98 257 424 169 . Time Decay 2376 | 10 287 180 404 120 334 286 302 . 453 Search Patrol Dispatched 100 | . . . . . . 100 . . . Lost Part 344 | . 10 10 70 10 30 30 . . 184 Lost Ally 357 | . 10 . 30 . . 150 40 . 127 Squads Dispatched 40 | . 1 . 5 . 4 4 . . 26 Investigation 28 | . 1 . 5 . 2 4 . . 16 Extermination 4 | . . . . . . . . . 4 Reinforcement 7 | . . . . . 2 . . . 5 Assault 1 | . . . . . . . . . 1 Garrison . | . . . . . . . . . . Intercept . | . . . . . . . . . . Searches Triggered 1 | . . . . . . 1 . . . Construction Impeded 2 | . . . . . . . . . 2 Haulers Reinforced 1 | . . . . . . . . . 1 Active Scanning Responses . | . . . . . . . . . . Cargo Convoy Interrupts . | . . . . . . . . . . Stealth | -11 -10 -10 -9 -9 -8 -8 -8 -8 -6 --------- Run | Yrd Mat Min Mat Min Mat Sto Rec Scr Fac Distress Signals 23 | . 3 . 8 3 4 4 . . 1 Communications Jammed . | . . . . . . . . . . Distress Signals . | . . . . . . . . . . Times Spotted 268 | . 24 11 53 12 40 57 . . 71 Peak Tracking Total 13 | . 7 6 11 7 9 13 . . 7 Tactical Retreats 49 | . 5 1 10 2 7 14 . . 10 Traps | -11 -10 -10 -9 -9 -8 -8 -8 -8 -6 ------- Run | Yrd Mat Min Mat Min Mat Sto Rec Scr Fac Traps Triggered 3 | . . . 1 . . 1 . . 1 Indirectly . | . . . . . . . . . . Trap Hack Attempts . | . . . . . . . . . . Triggered . | . . . . . . . . . . Disarmed . | . . . . . . . . . . Reprogrammed . | . . . . . . . . . . Reused . | . . . . . . . . . . Traps Extracted . | . . . . . . . . . . Installed . | . . . . . . . . . . Triggered . | . . . . . . . . . . Machines | -11 -10 -10 -9 -9 -8 -8 -8 -8 -6 ---------- Run | Yrd Mat Min Mat Min Mat Sto Rec Scr Fac Machines Disabled 25 | . . . 2 . 1 2 . . 20 Max in Single Turn 6 | . . . 1 . 1 1 . . 6 Garrison Access 4 | . . . . . 1 1 . . 2 Machines Repaired . | . . . . . . . . . . Machines Dismantled . | . . . . . . . . . . Machines Sabotaged . | . . . . . . . . . . Overloaded Fab Kills . | . . . . . . . . . . Hacking | -11 -10 -10 -9 -9 -8 -8 -8 -8 -6 --------- Run | Yrd Mat Min Mat Min Mat Sto Rec Scr Fac Machines Accessed 98 | . 7 . 16 . 15 14 12 1 33 Terminals 54 | . 6 . 11 . 10 9 5 . 13 Fabricators 5 | . . . . . . . . . 5 Repair Stations 8 | . . . 2 . 1 2 . . 3 Recycling Units 20 | . 1 . 1 . 1 2 7 . 8 Scanalyzers 6 | . . . 2 . 2 . . . 2 Garrison Access 4 | . . . . . 1 1 . . 2 Total Hacks 270 | . 20 . 52 . 60 31 26 6 75 Successful 178 | . 11 . 33 . 41 18 19 6 50 Failed 92 | . 9 . 19 . 19 13 7 . 25 Catastrophic 6 | . . . 3 . 1 1 . . 1 Database Lockouts . | . . . . . . . . . . Manual 196 | . 20 . 35 . 40 20 25 . 56 Terminals 177 | . 19 . 37 . 42 23 17 . 39 Fabricators 15 | . . . . . . . . . 15 Repair Stations 19 | . . . 6 . 8 2 . . 3 Recycling Units 25 | . 1 . 1 . 1 3 9 . 10 Scanalyzers 21 | . . . 8 . 8 . . . 5 Garrison Access 7 | . . . . . 1 3 . . 3 Terminal Hacks 39 | . 2 . 8 . 9 5 4 6 5 Part Schematic 1 | . . . . . 1 . . . . Robot Schematic 1 | . . . . . 1 . . . . Robot Analysis 12 | . 1 . 2 . . . 1 6 2 Prototype ID Bank 4 | . . . 2 . 1 1 . . . Open Door 3 | . . . . . . 3 . . . Branch Access Points 1 | . . . . . 1 . . . . Terminal Index 4 | . 1 . 1 . 1 . 1 . . Repair Station Index 1 | . . . . . 1 . . . . Alert Level 2 | . . . . . . . . . 2 Locate Traps 1 | . . . . . 1 . . . . Extermination Status 1 | . . . . . . . . . 1 Recall Investigation 1 | . . . . . 1 . . . . Hauler Manifests 1 | . . . 1 . . . . . . Zone Layout 6 | . . . 2 . 1 1 2 . . Fabricator Hacks 8 | . . . . . . . . . 8 Network Status 1 | . . . . . . . . . 1 Load Schematic 5 | . . . . . . . . . 5 Build 2 | . . . . . . . . . 2 Repair Station Hacks 12 | . . . 4 . 7 . . . 1 Scan Component 5 | . . . 2 . 3 . . . . Repair 5 | . . . 2 . 3 . . . . Refit 2 | . . . . . 1 . . . 1 Recycling Unit Hacks . | . . . . . . . . . . Scanalyzer 16 | . . . 4 . 8 . . . 4 Insert Component 6 | . . . 3 . 2 . . . 1 Analyze 4 | . . . 1 . 2 . . . 1 Retrieve Study 6 | . . . . . 4 . . . 2 Garrison Access Hacks 4 | . . . . . 1 1 . . 2 Seal Access 4 | . . . . . 1 1 . . 2 Unauthorized Hacks 99 | . 9 . 17 . 16 12 15 . 30 Terminals 70 | . 8 . 14 . 15 8 8 . 17 Track 2 | . . . 1 . 1 . . . . Assimilate 9 | . 1 . 1 . 1 2 . . 4 Botnet 21 | . 2 . 6 . 4 1 3 . 5 Disrupt 1 | . . . . . 1 . . . . Skim 37 | . 5 . 6 . 8 5 5 . 8 Fabricators 4 | . . . . . . . . . 4 Prioritize 1 | . . . . . . . . . 1 Download 1 | . . . . . . . . . 1 Recompile 2 | . . . . . . . . . 2 Repair Stations 6 | . . . 2 . . 2 . . 2 Patch 6 | . . . 2 . . 2 . . 2 Recycling Units 19 | . 1 . 1 . 1 2 7 . 7 Tunnel 13 | . 1 . 1 . 1 2 7 . 1 Fedlink 6 | . . . . . . . . . 6 Scanalyzers . | . . . . . . . . . . Garrison Access . | . . . . . . . . . . Data Cores Recovered 1 | . . . . . 1 . . . . Used 1 | . . . . . 1 . . . . Hacking Detections 65 | . 6 . 12 . 13 9 5 . 20 Full Trace Events 9 | . . . 2 . 3 . . . 4 Feedback Events 1 | . . . . . 1 . . . . Corruption 1 | . . . . . 1 . . . . Feedback Blocked . | . . . . . . . . . . Robot Schematics Acquired 1 | . . . . . 1 . . . . Robots Built 1 | . . . . . . . . . 1 Authchips . | . . . . . . . . . . Time 29 | . . . . . . . . . 29 Total Robot Build Rating 3 | . . . . . . . . . 3 Part Schematics Acquired 5 | . . . . . 3 . . . 2 Parts Built 2 | . . . . . . . . . 2 Authchips 1 | . . . . . . . . . 1 Time 18 | . . . . . . . . . 18 Total Part Build Rating 6 | . . . . . . . . . 6 Part Studies Acquired 6 | . . . . . 4 . . . 2 Parts Repaired 5 | . . . 2 . 3 . . . . Time 315 | . . . 102 . 213 . . . . Parts Recycled . | . . . . . . . . . . Recycled Matter . | . . . . . . . . . . Retrieved Matter . | . . . . . . . . . . Retrieved Components . | . . . . . . . . . . Parts Scanalyzed 3 | . . . 1 . 1 . . . 1 Part Schematics Acquired 3 | . . . . . 2 . . . 1 Parts Damaged 1 | . . . 1 . . . . . . Bothacking | -11 -10 -10 -9 -9 -8 -8 -8 -8 -6 ------------ Run | Yrd Mat Min Mat Min Mat Sto Rec Scr Fac Used RIF Installer . | . . . . . . . . . . Robots Hacked . | . . . . . . . . . . Non-combat . | . . . . . . . . . . Combat . | . . . . . . . . . . Robot Hacks Applied . | . . . . . . . . . . Relay Couplers Released . | . . . . . . . . . . Fabnet Peak Effective % . | . . . . . . . . . . Robots Rewired 10 | . . . . . . . 10 . . Allies Hacked . | . . . . . . . . . . Hacks Repelled . | . . . . . . . . . . Allies | -11 -10 -10 -9 -9 -8 -8 -8 -8 -6 -------- Run | Yrd Mat Min Mat Min Mat Sto Rec Scr Fac Total Allies 22 | . 1 3 1 . 1 1 10 . 5 Largest Group 10 | . 1 3 3 . 1 1 10 7 9 Highest-Rated Group 160 | . 10 40 40 . 10 26 157 111 160 Highest-Rated Ally 27 | . 10 16 16 . 10 26 27 27 27 Total Orders 16 | . 2 . . . 5 3 . 1 5 STAY 7 | . 1 . . . 3 . . 1 2 FOLLOW 5 | . 1 . . . 2 . . . 2 AID 1 | . . . . . . . . . 1 EXPLORE 3 | . . . . . . 3 . . . Ally Attacks 59 | . . 11 26 . . . 8 . 14 Total Damage 754 | . . 121 209 . . . 141 . 283 Kills 8 | . . 1 4 . . . 1 . 2 Allies Corrupted . | . . . . . . . . . . Allies Melted 1 | . . . . . . . . . 1 Intel | -11 -10 -10 -9 -9 -8 -8 -8 -8 -6 ------- Run | Yrd Mat Min Mat Min Mat Sto Rec Scr Fac Active Infowar (turns) 2991 | 18 772 372 558 . . . . . 1271 Optics 841 | . . . . . . . . . 841 Sensors 1022 | . . . . . . . . . 1022 Terrain 54 | . . . . . . . . . 54 Seismic 1720 | 18 772 372 558 . . . . . . Robot Analysis Total 12 | . 1 . 2 . . . 1 6 2 Derelict Logs Recovered 2 | . . 1 . 1 . . . . . Drone Launches 24 | . . . . . . 24 . . . Drone Recoveries 10 | . . . . . . 10 . . . Exploration | -11 -10 -10 -9 -9 -8 -8 -8 -8 -6 ------------- Run | Yrd Mat Min Mat Min Mat Sto Rec Scr Fac Turns Passed 6770 | 44 772 372 971 258 751 636 670 514 1782 Spaces Moved 10066 | 30 943 643 1455 337 1075 1172 551 1120 2740 Core 1109 | 29 214 . 7 . . . . . 859 Treads 1 | 1 . . . . . . . . . Legs . | . . . . . . . . . . Wheels . | . . . . . . . . . . Hover . | . . . . . . . . . . Flight 8956 | . 729 643 1448 337 1075 1172 551 1120 1881 Fastest Speed 20 | 50 37 37 31 31 26 26 27 27 20 Average Speed 32 | 53 40 37 32 31 29 27 27 27 35 Slowest Speed 245 | 160 100 120 200 31 34 29 27 245 200 Overloaded Moves . | . . . . . . . . . . Propulsion Burnouts . | . . . . . . . . . . Robots Hopped 86 | . 5 5 12 1 5 33 9 . 16 Potential Cave-ins . | . . . . . . . . . . Cave-ins Triggered . | . . . . . . . . . . Exploration Rate (%) 75 | 3 96 91 93 68 72 92 92 82 68 Regions Visited 9 Branch Regions 5 Pre-discovered Areas 23 | . 1 . 2 1 1 6 10 . 2 Known Exits Taken 7 | . . 1 1 1 1 1 1 1 . Unknown Exits Taken 2 | 1 1 . . . . . . . . Scrap Searched 7 | . . 3 . 2 . . . 2 . Spaces Dug 155 | . 7 5 29 . 20 19 1 . 74 Terrain Destroyed 428 | . 8 5 65 . 42 27 1 . 280 Melee 119 | . 5 5 29 . 20 19 1 . 40 Projectile 3 | . 3 . . . . . . . . AOE 306 | . . . 36 . 22 8 . . 240 Terrain Rammed . | . . . . . . . . . . Walls Destroyed . | . . . . . . . . . . Machines Disabled . | . . . . . . . . . . Actions | -11 -10 -10 -9 -9 -8 -8 -8 -8 -6 --------- Run | Yrd Mat Min Mat Min Mat Sto Rec Scr Fac Total 12828 | 45 1211 733 1789 489 1428 1381 1061 1327 3364 Wait 2099 | . 184 56 205 151 253 154 465 198 433 Move 9895 | 29 932 632 1432 335 1064 1109 532 1119 2711 Hop 76 | . 5 5 10 . 5 29 9 . 13 Pick Up 41 | 2 5 3 2 1 11 3 1 1 12 Fast Attach 71 | 4 6 . 11 . 11 9 . 3 27 Attach 32 | . 2 1 6 1 4 . . 2 16 Detach 15 | . 1 . 1 . 3 . . 1 9 Swap 52 | . 3 3 21 . 7 10 . 1 7 Drop 73 | . 6 5 8 1 17 12 1 2 21 Fire 141 | 10 51 14 31 . 4 1 . . 30 Melee 273 | . 16 14 61 . 49 47 1 . 85 Ram . | . . . . . . . . . . Kick . | . . . . . . . . . . Crush . | . . . . . . . . . . Escape Stasis . | . . . . . . . . . . Rewire 53 | . . . 1 . . . 52 . . Trap . | . . . . . . . . . . Miscellaneous 7 | . . . . . . 7 . . . Route ------- -11/Scrapyard -10/Materials (discovered 5 exits: *Mat x3 / [*Min x2]) -10/Mines (discovered 3 exits: *Mat / *Exi / *Sub) -9/Materials (discovered 5 exits: *Mat x3 / *Min x2) -9/Mines -8/Materials (discovered 5 exits: *Fac x3 / *Sto x2) -8/Storage (discovered 2 exits: *Fac / *Rec) -8/Recycling (discovered 2 exits: *Fac / *Scr) -8/Scraptown (discovered 2 exits: *Fac x2) -6/Factory (discovered 4 exits: *Fac x2 / *Low x2) History --------- Turn | Location | Event 5 | -11/Scrapyard | Discovered new exit (range 16) 45 | -11/Scrapyard | Entered Materials 262 | -10/Materials | Discovered new exit (range 9) 317 | -10/Materials | Discovered new exit (range 12) 329 | -10/Materials | Build established: Mutant 360 | -10/Materials | Discovered new exit (range 7) 407 | -10/Materials | Discovered new exit (range 8) 452 | -10/Materials | Discovered new exit (range 16) 587 | -10/Materials | Learned 2 Mines zone layouts 641 | -10/Materials | Learned location of 2 exits from Mines 687 | -10/Materials | Learned Storage emergency access door positions 743 | -10/Materials | Learned 4 Recycling zone layouts 775 | -10/Materials | Learned location of 1 exit from Recycling 816 | -10/Materials | Learned Storage stockpile data 817 | -10/Materials | Entered Mines 818 | -10/Mines | Identified exit to Exiles 818 | -10/Mines | Identified exit to Subcaves 818 | -10/Mines | Discovered new exit (range 12) 819 | -10/Mines | Identified exit to Materials 845 | -10/Mines | Assisted by bots powering up and referring to "LRC-V3" 1059 | -10/Mines | Learned location of 1 exit from Materials 1082 | -10/Mines | Found a damaged Exp. Sensor Array with a note attached 1083 | -10/Mines | Found Prototype Device 1088 | -10/Mines | Deemed a non-threat by the Exiles lab entrance 1189 | -10/Mines | Entered Materials 1189 | -9/Materials | Accompanied by 3 allies 1189 | -9/Materials | Evolved 2 slots: Propulsion x2 1190 | -9/Materials | Identified exit to Materials 1210 | -9/Materials | Identified Exp. Sensor Array 1309 | -9/Materials | Discovered new exit (range 10) 1466 | -9/Materials | Identified exit to Mines 1604 | -9/Materials | Learned Recycling recycling unit intel 1613 | -9/Materials | Learned Storage trap positions 1619 | -9/Materials | Build established: Scavenger-Sprinter 1667 | -9/Materials | Learned Storage security intel 1753 | -9/Materials | Discovered exit to Materials (range 10) 1794 | -9/Materials | Lost 3 parts (1p1n1u) 1806 | -9/Materials | Destroyed 10 combat bots 1840 | -9/Materials | Lost 3 parts (1p2n) 1948 | -9/Materials | Repaired Imp. Flight Unit 2143 | -9/Materials | Repaired Imp. Flight Unit? 2160 | -9/Materials | Entered Mines 2170 | -9/Mines | Found DCF Scrap (10 items) 2181 | -9/Mines | Assembled infested the area 2205 | -9/Mines | Met a Derelict bent on vengeance 2375 | -9/Mines | Received a Rocket Launcher from a helpful Derelict 2399 | -9/Mines | Found a hidden stash of uninstalled traps 2416 | -9/Mines | Discovered exit to Materials (range 8) 2418 | -9/Mines | Entered Materials 2418 | -8/Materials | Evolved 2 slots: Utility x2 2442 | -8/Materials | Discovered new exit (range 4) 2595 | -8/Materials | Discovered new exit (range 7) 2678 | -8/Materials | Discovered new exit (range 5) 2680 | -8/Materials | Discovered new exit (range 11) 2783 | -8/Materials | Identified exit to Storage 2851 | -8/Materials | Identified exit to Factory 2954 | -8/Materials | Build established: Sprinter 2980 | -8/Materials | Repaired Broken Exp. Sensor Array 2992 | -8/Materials | Learned location of 1 exit from Recycling 3008 | -8/Materials | Repaired Flight Unit+ 3017 | -8/Materials | Learned Factory stockpile data 3031 | -8/Materials | Learned Factory emergency access door positions 3060 | -8/Materials | Repaired Imp. Flight Unit 3089 | -8/Materials | Learned Storage emergency access door positions 3132 | -8/Materials | Learned Factory stockpile data 3169 | -8/Materials | Entered Storage 3170 | -8/Storage | Identified exit to Recycling 3171 | -8/Storage | Loaded intel: 14 trap records 3174 | -8/Storage | Found Prototype Protection 3174 | -8/Storage | Identified Lgt. Regenerative Plating 3189 | -8/Storage | Learned location of Armory (-4) 3372 | -8/Storage | Lost 14 allies 3442 | -8/Storage | Used back door to open Recycling access 3569 | -8/Storage | Search patrols dispatched 3633 | -8/Storage | Learned location of Extension (-4) 3755 | -8/Storage | Learned location of Zion (-6) 3805 | -8/Storage | Entered Recycling 3806 | -8/Recycling | Identified exit to Factory 3807 | -8/Recycling | Identified exit to Scraptown 3809 | -8/Recycling | Loaded intel: 7 recycling unit locations 4003 | -8/Recycling | Scanned before Scraplab entrance 4120 | -8/Recycling | Learned Storage emergency access door positions 4135 | -8/Recycling | Entered Scraplab 4180 | -8/Recycling | Learned location of 1 exit from Lower Caves 4230 | -8/Recycling | Learned 8 Factory zone layouts 4239 | -8/Recycling | Build established: Commander-Sprinter 4304 | -8/Recycling | Learned location of 2 exits from Factory 4346 | -8/Recycling | Learned location of 1 exit from Extension 4398 | -8/Recycling | Learned Factory stockpile data 4475 | -8/Recycling | Entered Scraptown 4475 | -8/Scraptown | Accompanied by 7 allies 4477 | -8/Scraptown | System corruption cleaned by C-Scrubber 4516 | -8/Scraptown | Visited UFD Registry 4516 | -8/Scraptown | Registered with UFD as "Matterwalker" 4519 | -8/Scraptown | Visited Cyclists 4521 | -8/Scraptown | Entered Cyclist Reading Room 4530 | -8/Scraptown | Visited CPS Storage 4533 | -8/Scraptown | Visited Spacefarers 4538 | -8/Scraptown | Visited SPCMW 4540 | -8/Scraptown | Visited Awakened 4543 | -8/Scraptown | Visited TADAMA 4545 | -8/Scraptown | Visited Shadow of the Wyrm 4589 | -8/Scraptown | Discovered exit to Factory (range 5) 4805 | -8/Scraptown | Visited Junk Repository 4812 | -8/Scraptown | Visited Research Penetration Think Tank 4817 | -8/Scraptown | Visited Supply Room 4823 | -8/Scraptown | Visited Scrap Suit Storage 4844 | -8/Scraptown | Visited Scrapoid Pod Storage 4848 | -8/Scraptown | Visited Curators Association 4865 | -8/Scraptown | Visited LU-1G1's Boring Crew 4873 | -8/Scraptown | Visited Chapter 10 4879 | -8/Scraptown | Visited Analyses Database 4931 | -8/Scraptown | Discovered exit to Factory (range 11) 4975 | -8/Scraptown | Met Optimus 4975 | -8/Scraptown | Accepted into 0bPrime 4989 | -8/Scraptown | Entered Factory 4989 | -6/Factory | Accompanied by 7 allies 4989 | -6/Factory | Evolved 4 slots: Propulsion x2, Utility x2 4990 | -6/Factory | Identified exit to Lower Caves 5036 | -6/Factory | Fabricated Cesium-ion Thruster? 5072 | -6/Factory | Fabricated M-28 Smith? 5305 | -6/Factory | Loaded intel: 8 recycling unit locations 5487 | -6/Factory | Destroyed 7 combat bots 5512 | -6/Factory | Learned location of Protoforge (-2) 5522 | -6/Factory | Spotted B-75 Beast 5541 | -6/Factory | Lost 10 parts (1p7n2u) 5682 | -6/Factory | Core integrity fell below 50% 5700 | -6/Factory | Lost 6 parts (1p3n1u1w) 5864 | -6/Factory | Learned 4 Lower Caves zone layouts 5946 | -6/Factory | Loaded intel: 93 trap records 5974 | -6/Factory | Loaded intel: 6 repair station locations 5994 | -6/Factory | Learned 2 Hub_04(d) zone layouts 6006 | -6/Factory | Identified exit to Factory 6010 | -6/Factory | Learned location of 1 exit from Hub_04(d) 6025 | -6/Factory | Learned Extension emergency access door positions 6039 | -6/Factory | First assault squad dispatched 6085 | -6/Factory | Learned location of 1 exit from Upper Caves 6171 | -6/Factory | Discovered exit to Factory (range 12) 6316 | -6/Factory | Core integrity fell below 20% 6417 | -6/Factory | Found Prototype Launcher 6417 | -6/Factory | Identified Scatter Rocket Array 6771 | -6/Factory | Destroyed self via exploding Power Conduit Last Messages --------------- 06746_ K-01 Serf cleans the Neutrino Reactor. 06747_ Sneak attack on A-15 Conveyor. 06748_ K-01 Serf cleans the Neutrino Reactor. 06769_ Neutrino Reactor explodes. 06769_ K-01 Serf destroyed. 06769_ U-05 Engineer destroyed. 06769_ Neutrino Reactor explodes. 06769_ R-10 Processor shuts down. 06769_ K-01 Serf destroyed. 06769_ Door malfunctions. 06770_ K-01 Serf collects debris. 06771_ Power Conduit explodes. 06771_ Destroyed Com. Wheel. 06771_ Lgt. Deuterium Engine destroyed. 06771_ Destroyed Lgt. Deuterium Engine. 06771_ Power Conduit explodes. 06771_ Y-54 Guardian destroyed. 06771_ Power Conduit explodes. 06771_ R-10 Processor destroyed. Map ----- +----------------------------------------------------+ | """ """ # ^ # #???????????# | | # # """""" #???????? ### | | """ """ # ^ + """""" #???????? | | """ """ # # %"""""" +??????? | | """ """ ############## """""" #????????? | | # # k [%* #?????????"" | | ############ """ # *"""""" #?????????"" | | ???????????# "Y" # """""" #??????? """ | | ???????????# # """""" #??????# | | ???????????# # """""" #????????""" | | ???????????# """ """ + #????????""" | | #########??# """ """ # +????????""" | | ?# """ """ # #??????? | | """ """" # "" "" # !!/ #??????# | | """ """" # "" "" # !!/ ############# | | """ """" # # !!/ | | "" """" # # | | "" """" ############## k | | """" #????????????# Ak | | #????????????# | | "" #????????????# #+#+####+######+#######+ | | "T #????????????# #? s s ## | | "" = #???????###### # s " " ## """ """ | | #???????# #! " " ## """ """ | | #+################## " " ## """ """ | | @ " " ## | | A " " ## """ """ | | "" """ """ % " " ## """ """ | | "" """ """ %=| " " ## """ """ | | "" """ """ ! " " ?# | | k = " " ?# | | "" """ """ ; [%* ?# ""T"" | | "" """ """ R #; ## """"" | | "" """ """ * #; ;;;; ;####### | | =% #?##???##??????########## | | ! #???????????????????????? | | #???????????????????????? | | #########/######## #???????????????????????? | | "" #?????????????# #####+#???????????????????????? | | "" #?????????????# #???????????????????########### | | #?????????????# #???????????????????# "" | | #?????????????# #???????????????????? """""" "R | | #?????????????# #???????????????????# """""" " | | " #?????????????# #???????????????????# """""" | | " #?????????????# #???????????????????# """""" | | " #????????????## ######+##???????????# | | #????????????# #^ ^ !#???????????# """""" | | /#????????????# > + """ #???????????# """""" | | #????????????# # """ #???????????# """""" | | #????????????## ## """^ #???????????# """""" | +----------------------------------------------------+ Best States ------------- Heat Dissipation 37 Energy Generation 18 Energy Capacity 310 Matter Stores 300 Matter Capacity 300 Sight Range 22 Robot Scan Range 20 Terrain Scan Range 16 Terrain Scan Density 10 Armor Coverage 150 Core Shielding 20 Propulsion Shielding 33 Evasion (%) 72 Salvage Targeting 2 Offensive Hacking 20 Defensive Hacking 12 Authchip Count 2 Item Schematics ----------------- Exp. Sensor Array | -8/Materials | Scanalyzed Cesium-ion Thruster | -8/Materials | Scanalyzed Hacking Suite | -8/Materials | Hacked Imp. System Restoration Module | -6/Factory | Downloaded Imp. Propulsion Shielding | -6/Factory | Scanalyzed Robot Schematics ------------------ M-28 Smith | -8/Materials | Hacked Fabricated ------------ Cesium-ion Thruster | x2 | -6/Factory | Authchip M-28 Smith | x1 | -6/Factory Repaired ---------- Imp. Flight Unit | 15% | -9/Materials Imp. Flight Unit | 17% | -9/Materials Exp. Sensor Array | 62% | -8/Materials | Broken Flight Unit | 5% | -8/Materials Imp. Flight Unit | 20% | -8/Materials Studied --------- Cesium-ion Thruster | -8/Materials | Hacked Flight Unit | -8/Materials | Hacked Grenade Launcher | -8/Materials | Hacked Rocket Launcher | -8/Materials | Hacked Lrn. Missile Launcher | -6/Factory | Hacked VTOL Module | -6/Factory | Hacked Alien Tech Used ----------------- None Achievements -------------- None Challenges ------------ None Game ------ Seed SmartbombHardenedGriptreads Manual? 0 Play Time 01:57:25 Cumulative 578.1 hours Start 2025.10.30 @ 11:46:16 End 2025.10.30 @ 17:08:35 Sessions 3 Manual Loads 0 Difficulty Rogue Special Mode None Game No. 242 Rogue 242 Adventurer 0 Explorer 0 Win Type - Total 42 Types 18/3/6/2/6/1/0/3/0/3 Lore% 96 Gallery% 88 Achievement% 70 Wizard Run 0 Options --------- Layout 1 ASCII 0 Keyboard 0 Movement Numpad Keybinds 0 Fullscreen 1 Font 24/Smallcaps Map View 50x35 Zoom Use 0% Tactical HUD 1 Map Filters NONE Filters NONE Steam 1 RUN: 1d335d19-3827-4ea9-a4b8-2476193d448d